[Event "*** SCC Grand Prix: Titled Tuesday Blitz"]
[Site "Chess.com"]
[Date "2020.10.06"]
[Round "3"]
[White "Oglob71"]
[Black "novocane"]
[Result "1-0"]
[WhiteElo "2501"]
[BlackElo "2273"]
[TimeControl "180+1"]
[EndTime "10:27:24 PDT"]
[Termination "Oglob71 won by resignation"]

1. d4 {[%clk 0:03:00.9]} 1... Nf6 {[%clk 0:02:59.7]} 2. Nf3 {[%clk 0:02:58.5]}
2... e6 {[%clk 0:02:59.7]} 3. e3 {[%clk 0:02:59]} 3... b6 {[%clk 0:02:59.8]} 4.
Bd3 {[%clk 0:02:59.6]} 4... Be7 {[%clk 0:02:58.4]} 5. Nbd2 {[%clk 0:03:00.1]}
5... Bb7 {[%clk 0:02:58.4]} 6. O-O {[%clk 0:03:00.2]} 6... d5 {[%clk 0:02:53.7]}
7. Ne5 {[%clk 0:02:57]} 7... O-O {[%clk 0:02:51.3]} 8. f4 {[%clk 0:02:57]} 8...
c5 {[%clk 0:02:49.1]} 9. c3 {[%clk 0:02:56.5]} 9... Nc6 {[%clk 0:02:48.9]} 10.
Qf3 {[%clk 0:02:56.5]} 10... a5 {[%clk 0:02:23.2]} 11. g4 {[%clk 0:02:56.1]}
11... Nxe5 {[%clk 0:02:05.7]} 12. fxe5 {[%clk 0:02:55]} 12... Nd7 {[%clk
0:02:00.1]} 13. Qh3 {[%clk 0:02:54.2]} 13... g6 {[%clk 0:01:35.1]} 14. Rf3
{[%clk 0:02:53]} 14... Ba6 {[%clk 0:01:23.5]} 15. Qf1 {[%clk 0:02:44.3]} 15...
Bxd3 {[%clk 0:01:22.5]} 16. Qxd3 {[%clk 0:02:44.8]} 16... Rb8 {[%clk 0:01:19.9]}
17. Nf1 {[%clk 0:02:44.6]} 17... b5 {[%clk 0:01:19.8]} 18. Bd2 {[%clk
0:02:35.1]} 18... b4 {[%clk 0:01:19.3]} 19. Ng3 {[%clk 0:02:35.1]} 19... bxc3
{[%clk 0:01:17.6]} 20. bxc3 {[%clk 0:02:35.2]} 20... Rb2 {[%clk 0:01:11.2]} 21.
Bc1 {[%clk 0:02:34.9]} 21... Rb6 {[%clk 0:01:08.9]} 22. Rb1 {[%clk 0:02:29]}
22... Rxb1 {[%clk 0:01:01.9]} 23. Qxb1 {[%clk 0:02:28]} 23... Qb6 {[%clk
0:01:01.9]} 24. Qc2 {[%clk 0:02:13]} 24... Rb8 {[%clk 0:00:58.9]} 25. Rf1 {[%clk
0:02:13.4]} 25... Qb1 {[%clk 0:00:55.7]} 26. Qxb1 {[%clk 0:02:13.5]} 26... Rxb1
{[%clk 0:00:55.5]} 27. Ba3 {[%clk 0:02:14]} 27... Rxf1+ {[%clk 0:00:48.4]} 28.
Kxf1 {[%clk 0:02:13.6]} 28... Kf8 {[%clk 0:00:46.7]} 29. Ke2 {[%clk 0:02:13]}
29... cxd4 {[%clk 0:00:43.3]} 30. Bxe7+ {[%clk 0:02:11.8]} 30... Kxe7 {[%clk
0:00:44.2]} 31. cxd4 {[%clk 0:02:08.9]} 31... Nb6 {[%clk 0:00:44.4]} 32. Kd3
{[%clk 0:02:08]} 32... Nc4 {[%clk 0:00:35.9]} 33. Ne2 {[%clk 0:02:06.4]} 33...
h5 {[%clk 0:00:33.6]} 34. gxh5 {[%clk 0:02:05]} 34... gxh5 {[%clk 0:00:33.7]}
35. Nf4 {[%clk 0:02:05.4]} 35... h4 {[%clk 0:00:33.7]} 36. h3 {[%clk 0:02:05.8]}
36... a4 {[%clk 0:00:18.7]} 37. Ng2 {[%clk 0:02:04.2]} 37... a3 {[%clk
0:00:17.3]} 38. Nxh4 {[%clk 0:02:01.2]} 38... Nb2+ {[%clk 0:00:17]} 39. Kc3
{[%clk 0:02:00.1]} 39... Nc4 {[%clk 0:00:17.5]} 40. Ng2 {[%clk 0:02:00.5]} 40...
f6 {[%clk 0:00:16.5]} 41. exf6+ {[%clk 0:01:56.8]} 41... Kxf6 {[%clk 0:00:17.4]}
42. e4 {[%clk 0:01:57.4]} 42... Nb6 {[%clk 0:00:15.6]} 43. e5+ {[%clk
0:01:54.2]} 43... Kf5 {[%clk 0:00:14.8]} 44. Ne3+ {[%clk 0:01:53.4]} 44... Ke4
{[%clk 0:00:15]} 45. Nc2 {[%clk 0:01:53.2]} 45... Na4+ {[%clk 0:00:08.9]} 46.
Kb3 {[%clk 0:01:51.3]} 46... Nb6 {[%clk 0:00:09.1]} 47. Kxa3 {[%clk 0:01:49.8]}
47... Kd3 {[%clk 0:00:08.6]} 48. Kb3 {[%clk 0:01:48.9]} 48... Nc4 {[%clk
0:00:09.1]} 49. h4 {[%clk 0:01:47.5]} 49... Nd2+ {[%clk 0:00:08.7]} 50. Kb2
{[%clk 0:01:47.8]} 50... Nc4+ {[%clk 0:00:09.2]} 51. Kc1 {[%clk 0:01:48.1]}
51... Ke4 {[%clk 0:00:08]} 52. h5 {[%clk 0:01:41.4]} 52... Kf5 {[%clk
0:00:07.5]} 53. Nb4 {[%clk 0:01:37.4]} 53... Kg5 {[%clk 0:00:06.1]} 54. Nc6
{[%clk 0:01:37.9]} 54... Kxh5 {[%clk 0:00:05.3]} 55. Nd8 {[%clk 0:01:38.1]}
55... Kg5 {[%clk 0:00:04.1]} 56. Nxe6+ {[%clk 0:01:38.4]} 56... Kf5 {[%clk
0:00:04.5]} 57. Nc7 {[%clk 0:01:38.7]} 57... Nb6 {[%clk 0:00:03.3]} 58. Kd2
{[%clk 0:01:37]} 58... Nc4+ {[%clk 0:00:03.1]} 59. Kc3 {[%clk 0:01:37.1]} 59...
Ne3 {[%clk 0:00:03.1]} 60. a4 {[%clk 0:01:35.8]} 60... Nc4 {[%clk 0:00:03.5]}
61. Nxd5 {[%clk 0:01:34.8]} 61... Ke4 {[%clk 0:00:03]} 62. Kxc4 {[%clk
0:01:34.5]} 1-0

[Event "*** SCC Grand Prix: Titled Tuesday Blitz"]
[Site "Chess.com"]
[Date "2020.10.06"]
[Round "3"]
[White "AndrewMaco"]
[Black "swimmerchess"]
[Result "0-1"]
[WhiteElo "2629"]
[BlackElo "2816"]
[TimeControl "180+1"]
[EndTime "10:27:25 PDT"]
[Termination "swimmerchess won by checkmate"]

1. e4 {[%clk 0:03:00.9]} 1... c5 {[%clk 0:02:59.7]} 2. Nf3 {[%clk 0:03:01]} 2...
Nc6 {[%clk 0:03:00]} 3. d4 {[%clk 0:03:00.8]} 3... cxd4 {[%clk 0:03:00.9]} 4.
Nxd4 {[%clk 0:03:01.5]} 4... Nf6 {[%clk 0:03:01.6]} 5. Nc3 {[%clk 0:03:02]} 5...
d6 {[%clk 0:03:02.3]} 6. Bg5 {[%clk 0:03:01.8]} 6... e6 {[%clk 0:03:02.3]} 7.
Qd2 {[%clk 0:03:02]} 7... a6 {[%clk 0:03:02.7]} 8. O-O-O {[%clk 0:03:01.7]} 8...
Bd7 {[%clk 0:03:03.2]} 9. f3 {[%clk 0:03:01.6]} 9... h6 {[%clk 0:03:02.6]} 10.
Be3 {[%clk 0:03:00.6]} 10... b5 {[%clk 0:03:03]} 11. Nxc6 {[%clk 0:02:59.4]}
11... Bxc6 {[%clk 0:03:03.9]} 12. Ne2 {[%clk 0:03:00]} 12... Bb7 {[%clk
0:03:03.7]} 13. Nd4 {[%clk 0:03:00.2]} 13... Rc8 {[%clk 0:03:03.4]} 14. g4
{[%clk 0:02:55.4]} 14... Be7 {[%clk 0:03:03.3]} 15. h4 {[%clk 0:02:55.4]} 15...
Nd7 {[%clk 0:03:01.3]} 16. Be2 {[%clk 0:02:50.1]} 16... Ne5 {[%clk 0:03:00.3]}
17. g5 {[%clk 0:02:48.3]} 17... h5 {[%clk 0:02:58.3]} 18. Kb1 {[%clk 0:02:43.8]}
18... Qc7 {[%clk 0:02:50.8]} 19. Rhg1 {[%clk 0:02:38.8]} 19... g6 {[%clk
0:02:36]} 20. Bd3 {[%clk 0:02:05.2]} 20... d5 {[%clk 0:02:25.6]} 21. exd5 {[%clk
0:01:52.1]} 21... Bxd5 {[%clk 0:02:26.5]} 22. Bf4 {[%clk 0:01:34.6]} 22... Bd6
{[%clk 0:01:57.7]} 23. Qe2 {[%clk 0:01:09.6]} 23... Nxd3 {[%clk 0:01:50.3]} 24.
Bxd6 {[%clk 0:01:09.6]} 24... Qxd6 {[%clk 0:01:51.2]} 25. Qxd3 {[%clk
0:01:05.7]} 25... Rd8 {[%clk 0:01:37.3]} 26. Qe3 {[%clk 0:01:04.9]} 26... O-O
{[%clk 0:01:36.2]} 27. f4 {[%clk 0:01:03.2]} 27... Qb6 {[%clk 0:01:33.8]} 28.
Rge1 {[%clk 0:00:55.4]} 28... a5 {[%clk 0:01:32.6]} 29. Qe5 {[%clk 0:00:54.9]}
29... b4 {[%clk 0:01:28.4]} 30. Qf6 {[%clk 0:00:55.1]} 30... Qb7 {[%clk
0:01:20.5]} 31. Rg1 {[%clk 0:00:48.6]} 31... a4 {[%clk 0:01:06.8]} 32. f5 {[%clk
0:00:48.6]} 32... Kh7 {[%clk 0:00:56.7]} 33. fxg6+ {[%clk 0:00:41]} 33... fxg6
{[%clk 0:00:56.6]} 34. Qe5 {[%clk 0:00:41.6]} 34... b3 {[%clk 0:00:54]} 35. cxb3
{[%clk 0:00:38.1]} 35... axb3 {[%clk 0:00:54.9]} 36. Nxb3 {[%clk 0:00:37.8]}
36... Ra8 {[%clk 0:00:45.5]} 37. Rge1 {[%clk 0:00:32.6]} 37... Rfc8 {[%clk
0:00:33.1]} 38. Rc1 {[%clk 0:00:25.3]} 38... Bxb3 {[%clk 0:00:22.2]} 39. axb3
{[%clk 0:00:23.3]} 39... Ra1+ {[%clk 0:00:22.7]} 40. Kxa1 {[%clk 0:00:20.5]}
40... Qa6+ {[%clk 0:00:23.1]} 41. Kb1 {[%clk 0:00:20.3]} 41... Qd3+ {[%clk
0:00:23.5]} 42. Rc2 {[%clk 0:00:18.1]} 42... Qxc2+ {[%clk 0:00:23.6]} 43. Ka1
{[%clk 0:00:17.8]} 43... Ra8+ {[%clk 0:00:24.2]} 44. Qa5 {[%clk 0:00:17.2]}
44... Rxa5# {[%clk 0:00:25.1]} 0-1

[Event "*** SCC Grand Prix: Titled Tuesday Blitz"]
[Site "Chess.com"]
[Date "2020.10.06"]
[Round "3"]
[White "Atakishiyev04"]
[Black "keepitcoming"]
[Result "1-0"]
[WhiteElo "2750"]
[BlackElo "2477"]
[TimeControl "180+1"]
[EndTime "10:27:27 PDT"]
[Termination "Atakishiyev04 won by resignation"]

1. d4 {[%clk 0:03:00.9]} 1... d5 {[%clk 0:03:00.1]} 2. Nf3 {[%clk 0:03:01.4]}
2... Nf6 {[%clk 0:03:00.1]} 3. Bf4 {[%clk 0:03:02]} 3... Bf5 {[%clk 0:02:59.5]}
4. e3 {[%clk 0:03:02.6]} 4... e6 {[%clk 0:02:59.8]} 5. Bd3 {[%clk 0:03:03.2]}
5... Bxd3 {[%clk 0:02:56.8]} 6. Qxd3 {[%clk 0:03:04.1]} 6... Bd6 {[%clk
0:02:57.1]} 7. Nbd2 {[%clk 0:03:03.9]} 7... O-O {[%clk 0:02:55.7]} 8. Ne5 {[%clk
0:03:02.4]} 8... c5 {[%clk 0:02:40.2]} 9. c3 {[%clk 0:03:02]} 9... Nh5 {[%clk
0:02:34.3]} 10. Bg3 {[%clk 0:03:00.1]} 10... Nc6 {[%clk 0:02:29.6]} 11. O-O-O
{[%clk 0:02:50.5]} 11... Rc8 {[%clk 0:02:25.3]} 12. Kb1 {[%clk 0:02:49.4]} 12...
cxd4 {[%clk 0:02:22.4]} 13. exd4 {[%clk 0:02:50.3]} 13... b5 {[%clk 0:02:10.8]}
14. Qxb5 {[%clk 0:02:39.2]} 14... Nxe5 {[%clk 0:02:03.9]} 15. dxe5 {[%clk
0:02:34.1]} 15... Nxg3 {[%clk 0:01:59.2]} 16. hxg3 {[%clk 0:02:31]} 16... Bxe5
{[%clk 0:01:57]} 17. Qd3 {[%clk 0:02:31.5]} 17... g6 {[%clk 0:01:54.6]} 18. Rh4
{[%clk 0:02:29.3]} 18... Qf6 {[%clk 0:01:48.5]} 19. Nf3 {[%clk 0:02:28]} 19...
Bd6 {[%clk 0:01:39]} 20. Rdh1 {[%clk 0:02:27.4]} 20... h5 {[%clk 0:01:35.8]} 21.
g4 {[%clk 0:02:27.2]} 21... hxg4 {[%clk 0:01:35.4]} 22. Rxg4 {[%clk 0:02:26.5]}
22... Kg7 {[%clk 0:01:34.1]} 23. Rgh4 {[%clk 0:02:22.8]} 23... Rh8 {[%clk
0:01:33.6]} 24. Qe3 {[%clk 0:02:15.3]} 24... a5 {[%clk 0:01:30.7]} 25. Ka1
{[%clk 0:01:54.1]} 25... a4 {[%clk 0:01:26.5]} 26. a3 {[%clk 0:01:52.7]} 26...
Rb8 {[%clk 0:01:21.3]} 27. Rxh8 {[%clk 0:01:51.7]} 27... Rxh8 {[%clk 0:01:19.6]}
28. Rxh8 {[%clk 0:01:52.6]} 28... Kxh8 {[%clk 0:01:20.5]} 29. Qd4 {[%clk
0:01:52.7]} 29... Qxd4 {[%clk 0:01:13.8]} 30. cxd4 {[%clk 0:01:53.5]} 30... Kg7
{[%clk 0:01:10.5]} 31. Ka2 {[%clk 0:01:53.8]} 31... Kf6 {[%clk 0:01:07.1]} 32.
b3 {[%clk 0:01:53.7]} 32... axb3+ {[%clk 0:01:05.2]} 33. Kxb3 {[%clk 0:01:54.6]}
33... Ke7 {[%clk 0:01:05.9]} 34. a4 {[%clk 0:01:49.2]} 34... f6 {[%clk
0:01:05.9]} 35. a5 {[%clk 0:01:48.7]} 35... Kd7 {[%clk 0:01:03.9]} 36. g4 {[%clk
0:01:49.1]} 36... g5 {[%clk 0:01:00.5]} 37. Ne1 {[%clk 0:01:48.2]} 37... Kc6
{[%clk 0:00:59.2]} 38. Ka4 {[%clk 0:01:48.7]} 38... Bf4 {[%clk 0:00:55.2]} 39.
Nd3 {[%clk 0:01:48]} 39... Bd2 {[%clk 0:00:52.5]} 40. a6 {[%clk 0:01:46.6]}
40... Kb6 {[%clk 0:00:48.6]} 41. Nc5 {[%clk 0:01:39.1]} 41... e5 {[%clk
0:00:46.8]} 42. a7 {[%clk 0:01:32.5]} 42... Kxa7 {[%clk 0:00:44.5]} 43. dxe5
{[%clk 0:01:33]} 43... fxe5 {[%clk 0:00:43.1]} 44. Kb5 {[%clk 0:01:33.6]} 44...
e4 {[%clk 0:00:36.8]} 45. Kc6 {[%clk 0:01:32.7]} 45... e3 {[%clk 0:00:29.6]} 46.
fxe3 {[%clk 0:01:27.7]} 46... Bxe3 {[%clk 0:00:30.5]} 47. Kxd5 {[%clk
0:01:27.5]} 47... Kb6 {[%clk 0:00:29]} 48. Ne6 {[%clk 0:01:26.7]} 48... Bd2
{[%clk 0:00:27.4]} 49. Ke5 {[%clk 0:01:26.6]} 49... Be3 {[%clk 0:00:25.4]} 50.
Ke4 {[%clk 0:01:25.6]} 50... Bd2 {[%clk 0:00:23.6]} 51. Kf5 {[%clk 0:01:26]}
51... Bc1 {[%clk 0:00:22.4]} 52. Nxg5 {[%clk 0:01:26.1]} 52... Kc5 {[%clk
0:00:20.3]} 53. Ne4+ {[%clk 0:01:25.2]} 53... Kd4 {[%clk 0:00:19.1]} 54. Nf6
{[%clk 0:01:21.9]} 54... Be3 {[%clk 0:00:17.5]} 55. Nh5 {[%clk 0:01:20.9]} 55...
Bh6 {[%clk 0:00:16.4]} 56. Nf4 {[%clk 0:01:19.4]} 56... Ke3 {[%clk 0:00:14.5]}
57. Ne6 {[%clk 0:01:19]} 57... Ke2 {[%clk 0:00:13.1]} 58. Kg6 {[%clk 0:01:16.3]}
58... Kf3 {[%clk 0:00:13.5]} 59. Kf5 {[%clk 0:01:15]} 59... Ke2 {[%clk
0:00:12.9]} 60. Nd8 {[%clk 0:01:14.4]} 60... Kf2 {[%clk 0:00:11.7]} 61. Nf7
{[%clk 0:01:14.8]} 61... Bd2 {[%clk 0:00:10.7]} 62. Ng5 {[%clk 0:01:15.3]} 62...
Kg3 {[%clk 0:00:10.5]} 63. Ne4+ {[%clk 0:01:15.7]} 63... Kh4 {[%clk 0:00:08.4]}
64. Nxd2 {[%clk 0:01:16.6]} 1-0

[Event "*** SCC Grand Prix: Titled Tuesday Blitz"]
[Site "Chess.com"]
[Date "2020.10.06"]
[Round "3"]
[White "Shuvalov"]
[Black "Kildepiotr"]
[Result "1-0"]
[WhiteElo "2424"]
[BlackElo "2585"]
[TimeControl "180+1"]
[EndTime "10:27:27 PDT"]
[Termination "Shuvalov won by resignation"]

1. Nf3 {[%clk 0:02:58.2]} 1... g6 {[%clk 0:02:59.9]} 2. c4 {[%clk 0:02:57.3]}
2... Bg7 {[%clk 0:03:00.3]} 3. d4 {[%clk 0:02:58]} 3... d6 {[%clk 0:03:00.3]} 4.
Nc3 {[%clk 0:02:58.6]} 4... Nd7 {[%clk 0:03:00.5]} 5. e4 {[%clk 0:02:58.3]} 5...
e5 {[%clk 0:03:00.4]} 6. Be3 {[%clk 0:02:55]} 6... Ngf6 {[%clk 0:03:00]} 7. h3
{[%clk 0:02:55.3]} 7... O-O {[%clk 0:02:59.8]} 8. g3 {[%clk 0:02:54.4]} 8...
exd4 {[%clk 0:02:56.2]} 9. Nxd4 {[%clk 0:02:54.2]} 9... Nc5 {[%clk 0:02:56.3]}
10. Bg2 {[%clk 0:02:52]} 10... Re8 {[%clk 0:02:56.8]} 11. Qc2 {[%clk 0:02:52]}
11... a5 {[%clk 0:02:55]} 12. O-O {[%clk 0:02:49.4]} 12... a4 {[%clk 0:02:55.2]}
13. Ndb5 {[%clk 0:02:48.9]} 13... c6 {[%clk 0:02:50.1]} 14. Rad1 {[%clk
0:02:45.5]} 14... cxb5 {[%clk 0:02:41.6]} 15. Bxc5 {[%clk 0:02:45.5]} 15... bxc4
{[%clk 0:02:41.7]} 16. Bxd6 {[%clk 0:02:43.1]} 16... Nd7 {[%clk 0:02:31.9]} 17.
Nd5 {[%clk 0:02:39]} 17... Be5 {[%clk 0:02:26]} 18. Nc7 {[%clk 0:02:23.3]} 18...
Bxd6 {[%clk 0:02:23.5]} 19. Nxe8 {[%clk 0:02:22.5]} 19... Bf8 {[%clk 0:02:12.5]}
20. Nd6 {[%clk 0:02:20.9]} 20... Qc7 {[%clk 0:02:03.8]} 21. Nxc4 {[%clk
0:02:11.4]} 21... Ne5 {[%clk 0:02:03.5]} 22. Ne3 {[%clk 0:02:08]} 22... Qxc2
{[%clk 0:02:00.3]} 23. Nxc2 {[%clk 0:02:08.9]} 23... Be6 {[%clk 0:02:00.1]} 24.
a3 {[%clk 0:02:04.7]} 24... Bb3 {[%clk 0:01:58.1]} 25. Rd2 {[%clk 0:02:01.6]}
25... Nc4 {[%clk 0:01:54.9]} 26. Re2 {[%clk 0:02:01.7]} 26... Nxb2 {[%clk
0:01:52.1]} 27. Nb4 {[%clk 0:01:58.7]} 27... Bxb4 {[%clk 0:01:47.8]} 28. axb4
{[%clk 0:01:59.6]} 28... a3 {[%clk 0:01:48]} 29. Ra1 {[%clk 0:01:58.4]} 29...
Nc4 {[%clk 0:01:27.5]} 30. e5 {[%clk 0:01:55.4]} 30... a2 {[%clk 0:01:21.2]} 31.
Bxb7 {[%clk 0:01:52.7]} 31... Rb8 {[%clk 0:01:21.5]} 32. Bd5 {[%clk 0:01:48.6]}
32... Rxb4 {[%clk 0:01:21.5]} 33. e6 {[%clk 0:01:45.7]} 33... fxe6 {[%clk
0:01:20.9]} 34. Bxe6+ {[%clk 0:01:45.5]} 34... Kg7 {[%clk 0:01:20.6]} 35. Re4
{[%clk 0:01:32.1]} 35... Bc2 {[%clk 0:01:08.5]} 36. Ree1 {[%clk 0:01:16.9]}
36... Bb1 {[%clk 0:00:51.3]} 37. Rc1 {[%clk 0:01:08.7]} 37... Nd2 {[%clk
0:00:33.3]} 38. Bxa2 {[%clk 0:01:04.1]} 38... Ra4 {[%clk 0:00:29.9]} 39. Raxb1
{[%clk 0:00:57.3]} 39... Rxa2 {[%clk 0:00:27]} 40. Rb7+ {[%clk 0:00:56.2]} 40...
Kh6 {[%clk 0:00:26.8]} 41. Kg2 {[%clk 0:00:56.4]} 41... Ne4 {[%clk 0:00:23.4]}
42. Rf7 {[%clk 0:00:54.4]} 42... Ng5 {[%clk 0:00:20.3]} 43. Rf4 {[%clk
0:00:53.4]} 43... Ne6 {[%clk 0:00:20.2]} 44. Rf6 {[%clk 0:00:52.5]} 44... Ng5
{[%clk 0:00:18.3]} 45. Rc4 {[%clk 0:00:50.7]} 45... Kg7 {[%clk 0:00:15.7]} 46.
Rcf4 {[%clk 0:00:49.6]} 46... Re2 {[%clk 0:00:13.3]} 47. h4 {[%clk 0:00:49]}
47... Ne4 {[%clk 0:00:11.5]} 48. Re6 {[%clk 0:00:43.7]} 48... Nc3 {[%clk
0:00:06.7]} 49. Rxe2 {[%clk 0:00:43]} 49... Nxe2 {[%clk 0:00:06.9]} 50. Rc4
{[%clk 0:00:42.9]} 1-0

[Event "*** SCC Grand Prix: Titled Tuesday Blitz"]
[Site "Chess.com"]
[Date "2020.10.06"]
[Round "3"]
[White "DamianoLew95"]
[Black "abhidabhi"]
[Result "0-1"]
[WhiteElo "2538"]
[BlackElo "2770"]
[TimeControl "180+1"]
[EndTime "10:27:28 PDT"]
[Termination "abhidabhi won by resignation"]

1. b3 {[%clk 0:03:00.9]} 1... d5 {[%clk 0:02:58.4]} 2. f4 {[%clk 0:02:59.8]}
2... Nf6 {[%clk 0:02:58.1]} 3. Bb2 {[%clk 0:02:59.8]} 3... g6 {[%clk 0:02:57.4]}
4. Nf3 {[%clk 0:02:59.8]} 4... Bg7 {[%clk 0:02:57.7]} 5. e3 {[%clk 0:03:00.5]}
5... Bg4 {[%clk 0:02:57.2]} 6. h3 {[%clk 0:02:58.7]} 6... Bxf3 {[%clk
0:02:56.8]} 7. Qxf3 {[%clk 0:02:58.1]} 7... c6 {[%clk 0:02:56.2]} 8. g4 {[%clk
0:02:51.9]} 8... Nbd7 {[%clk 0:02:51.1]} 9. g5 {[%clk 0:02:49.4]} 9... Nh5
{[%clk 0:02:50]} 10. Bxg7 {[%clk 0:02:49.9]} 10... Nxg7 {[%clk 0:02:50.9]} 11.
h4 {[%clk 0:02:49.9]} 11... e5 {[%clk 0:02:48.2]} 12. Bh3 {[%clk 0:02:46.9]}
12... f5 {[%clk 0:02:30.5]} 13. gxf6 {[%clk 0:02:41.4]} 13... Qxf6 {[%clk
0:02:30.2]} 14. Bxd7+ {[%clk 0:02:40.8]} 14... Kxd7 {[%clk 0:02:29.8]} 15. Nc3
{[%clk 0:02:35.4]} 15... exf4 {[%clk 0:02:28.4]} 16. O-O-O {[%clk 0:02:35]}
16... Ne6 {[%clk 0:02:21.7]} 17. Rdf1 {[%clk 0:02:25.8]} 17... Raf8 {[%clk
0:02:16.8]} 18. exf4 {[%clk 0:02:21.8]} 18... Qxf4 {[%clk 0:02:08.8]} 19. Qh3
{[%clk 0:02:18.3]} 19... Qd6 {[%clk 0:02:06.4]} 20. Re1 {[%clk 0:02:17]} 20...
Rf5 {[%clk 0:02:00.6]} 21. Ne2 {[%clk 0:02:07.8]} 21... d4 {[%clk 0:01:49.8]}
22. d3 {[%clk 0:01:41.1]} 22... Rhf8 {[%clk 0:01:44.9]} 23. Qg4 {[%clk
0:01:25.1]} 23... Nc7 {[%clk 0:01:18.3]} 24. Nxd4 {[%clk 0:01:02.9]} 24... h5
{[%clk 0:01:02.6]} 25. Qg1 {[%clk 0:01:02.1]} 25... Qa3+ {[%clk 0:00:55.8]} 26.
Kd1 {[%clk 0:00:51.4]} 26... R5f6 {[%clk 0:00:49.4]} 27. Qg3 {[%clk 0:00:29.8]}
27... Nd5 {[%clk 0:00:46.8]} 28. Qe5 {[%clk 0:00:27.9]} 28... Qxa2 {[%clk
0:00:42.1]} 29. Rh2 {[%clk 0:00:17.9]} 29... Qa1+ {[%clk 0:00:36.6]} 30. Kd2
{[%clk 0:00:16.5]} 30... Qa5+ {[%clk 0:00:36.2]} 31. Kc1 {[%clk 0:00:14.6]}
31... Qa1+ {[%clk 0:00:23.1]} 32. Kd2 {[%clk 0:00:14.6]} 32... Qc3+ {[%clk
0:00:23.2]} 33. Kc1 {[%clk 0:00:12.8]} 33... Nb4 {[%clk 0:00:18.7]} 34. Qe7+
{[%clk 0:00:04.8]} 34... Kc8 {[%clk 0:00:18.6]} 35. Rd1 {[%clk 0:00:04]} 35...
Qxd4 {[%clk 0:00:14.3]} 36. Re2 {[%clk 0:00:04.2]} 36... Na2+ {[%clk 0:00:13.8]}
37. Kb1 {[%clk 0:00:04.4]} 37... Nc3+ {[%clk 0:00:13.7]} 0-1

[Event "*** SCC Grand Prix: Titled Tuesday Blitz"]
[Site "Chess.com"]
[Date "2020.10.06"]
[Round "3"]
[White "Nara_Kh"]
[Black "pavelalexandru07"]
[Result "0-1"]
[WhiteElo "2379"]
[BlackElo "2245"]
[TimeControl "180+1"]
[EndTime "10:27:28 PDT"]
[Termination "pavelalexandru07 won by resignation"]

1. e4 {[%clk 0:03:00]} 1... e5 {[%clk 0:02:54.5]} 2. Nf3 {[%clk 0:02:59.1]} 2...
Nc6 {[%clk 0:02:52.1]} 3. Bb5 {[%clk 0:02:58.4]} 3... a6 {[%clk 0:02:52]} 4. Ba4
{[%clk 0:02:58.3]} 4... Nf6 {[%clk 0:02:52.4]} 5. O-O {[%clk 0:02:58]} 5... Be7
{[%clk 0:02:50.1]} 6. d3 {[%clk 0:02:57.1]} 6... b5 {[%clk 0:02:47.8]} 7. Bb3
{[%clk 0:02:57.2]} 7... O-O {[%clk 0:02:48.3]} 8. h3 {[%clk 0:02:56.2]} 8... d6
{[%clk 0:02:48.1]} 9. a4 {[%clk 0:02:56.3]} 9... Bb7 {[%clk 0:02:39.7]} 10. Nbd2
{[%clk 0:02:53.7]} 10... Na5 {[%clk 0:02:35]} 11. Ba2 {[%clk 0:02:51.2]} 11...
c5 {[%clk 0:02:34.6]} 12. c3 {[%clk 0:02:39.8]} 12... Qc7 {[%clk 0:02:32.5]} 13.
Re1 {[%clk 0:02:38.7]} 13... h6 {[%clk 0:02:20.7]} 14. Nf1 {[%clk 0:02:37]}
14... Rfd8 {[%clk 0:02:16.5]} 15. Ne3 {[%clk 0:02:29.8]} 15... Bf8 {[%clk
0:02:13.6]} 16. Nf5 {[%clk 0:02:26.6]} 16... c4 {[%clk 0:01:54.3]} 17. N3h4
{[%clk 0:02:10.3]} 17... d5 {[%clk 0:01:48]} 18. Qf3 {[%clk 0:02:06]} 18... dxe4
{[%clk 0:01:11.6]} 19. dxe4 {[%clk 0:01:58.3]} 19... Rd3 {[%clk 0:01:11.2]} 20.
Nxh6+ {[%clk 0:01:54.3]} 20... Kh8 {[%clk 0:00:34.7]} 21. Qf5 {[%clk 0:01:50]}
21... Bc8 {[%clk 0:00:32.3]} 22. Qg5 {[%clk 0:01:33.7]} 22... Nh7 {[%clk
0:00:32.3]} 23. Nxf7+ {[%clk 0:01:32.9]} 23... Qxf7 {[%clk 0:00:30]} 24. Qxe5
{[%clk 0:01:31.5]} 24... Bd6 {[%clk 0:00:27.5]} 25. Qxd6 {[%clk 0:00:41.4]}
25... Rxd6 {[%clk 0:00:26]} 26. e5 {[%clk 0:00:42.3]} 26... Rd8 {[%clk 0:00:15]}
27. axb5 {[%clk 0:00:42.3]} 27... axb5 {[%clk 0:00:14.9]} 28. Bb1 {[%clk
0:00:42.8]} 28... Be6 {[%clk 0:00:13.7]} 29. Ng6+ {[%clk 0:00:41.7]} 29... Kg8
{[%clk 0:00:13.7]} 30. g4 {[%clk 0:00:41.1]} 30... Nb3 {[%clk 0:00:11.4]} 31.
Rxa8 {[%clk 0:00:41.3]} 31... Rxa8 {[%clk 0:00:12.3]} 32. Bf4 {[%clk 0:00:41.7]}
32... Ra1 {[%clk 0:00:11.7]} 33. Bg3 {[%clk 0:00:40.9]} 33... Rxb1 {[%clk
0:00:11.5]} 34. Rxb1 {[%clk 0:00:40.6]} 34... Qxg6 {[%clk 0:00:12]} 35. Rd1
{[%clk 0:00:39.8]} 35... Qc2 {[%clk 0:00:12.4]} 36. Rd8+ {[%clk 0:00:38.6]}
36... Kf7 {[%clk 0:00:12.9]} 37. Rb8 {[%clk 0:00:38.2]} 37... Nf8 {[%clk
0:00:13.3]} 38. Rb7+ {[%clk 0:00:36.8]} 38... Nd7 {[%clk 0:00:13.9]} 39. Rxb5
{[%clk 0:00:35.3]} 39... Qxb2 {[%clk 0:00:14.4]} 40. Rb7 {[%clk 0:00:35.6]}
40... Qxc3 {[%clk 0:00:14.6]} 41. h4 {[%clk 0:00:35.2]} 41... Qd4 {[%clk
0:00:14.7]} 42. g5 {[%clk 0:00:34.8]} 42... c3 {[%clk 0:00:15]} 43. Rc7 {[%clk
0:00:34.2]} 43... Nc5 {[%clk 0:00:12.4]} 0-1